bitfinex-derivatives/quotes_BNBF0:USTF0_20250326
["timestamp","ask_amount","ask_price","bid_price","bid_amount"]
[1742979539020,1.19581165,632.3,632.29,1.18563171]
[1742979539915,1.19581165,632.3,632.28,1.18563171]
[1742979540114,1.19581165,632.29,632.28,1.18563171]
[1742979542016,1.19581165,632.29,632.26,1.18563171]
[1742979542218,1.542,632.59,632.26,1.18563171]
[1742979542416,1.19539621,632.58,632.26,1.18563171]
[1742979542623,1.19539621,632.57,632.26,1.18563171]
[1742979542820,1.19539621,632.56,632.26,1.18563171]
[1742979543020,1.19539621,632.55,632.26,1.18563171]
[1742979543215,1.19539621,632.54,632.26,1.18563171]
[1742979543518,1.19539621,632.53,632.26,1.18563171]
[1742979543719,1.19539621,632.52,632.26,1.18563171]
[1742979543918,1.19539621,632.51,632.27,1.18563171]
[1742979544117,1.19539621,632.5,632.27,1.18563171]
[1742979544324,1.19539621,632.49,632.27,1.18563171]
[1742979544517,1.19539621,632.48,632.27,1.18563171]
[1742979544722,1.19539621,632.47,632.27,1.18563171]
[1742979545017,1.19539621,632.46,632.27,1.18563171]
[1742979545223,1.19539621,632.45,632.27,1.18563171]
[1742979545524,1.19539621,632.44,632.27,1.18563171]
[1742979545720,1.19539621,632.43,632.27,1.18563171]
[1742979545915,1.19539621,632.42,632.27,1.18563171]
[1742979546120,1.19539621,632.41,632.27,1.18563171]
[1742979546320,1.19539621,632.4,632.27,1.18563171]
[1742979546517,1.19539621,632.39,632.28,1.18563171]
[1742979546722,1.19539621,632.38,632.28,1.18563171]
[1742979546923,1.19539621,632.37,632.28,1.18563171]
[1742979547125,1.19539621,632.36,632.28,1.18563171]
[1742979547425,1.19539621,632.35,632.28,1.18563171]
[1742979547724,1.19539621,632.34,632.28,1.18563171]
[1742979547918,1.19539621,632.33,632.28,1.18563171]
[1742979548122,1.19539621,632.32,632.28,1.18563171]
[1742979548321,1.19539621,632.31,632.28,1.18563171]
[1742979548524,1.19539621,632.3,632.28,1.18563171]
[1742979548724,1.19539621,632.3,631.72,3.41824245]
[1742979548725,1.19539621,632.29,631.78,1.18563171]
[1742979548923,1.19539621,632.28,631.78,1.18563171]
[1742979549120,1.19539621,632.27,631.78,1.18563171]
[1742979549325,1.19539621,632.26,631.78,1.18563171]
[1742979549523,1.19539621,632.25,631.78,1.18563171]
[1742979549725,1.19539621,632.24,631.78,1.18563171]
[1742979549925,1.19539621,632.23,631.78,1.18563171]
[1742979550125,1.19539621,632.22,631.78,1.18563171]
[1742979550426,2.11350898,632.21,631.78,1.18563171]
[1742979550626,0.92,632.21,631.78,1.18563171]
[1742979550827,0.92,632.21,631.9,1.18563171]
[1742979553132,0.92,632.21,631.91,1.18563171]
[1742979555633,1.19257603,632.2,631.92,0.26437702]
[1742979555829,1.19257603,632.19,631.96,1.18563171]
[1742979556034,1.19257603,632.18,631.96,1.18563171]
[1742979556236,1.19257603,632.17,631.96,1.18563171]
[1742979556434,1.1922137,632.16,631.96,1.18563171]
[1742979556637,0.92,632.21,631.96,1.18563171]
[1742979556937,1.1922007,632.2,631.96,1.18563171]
[1742979557133,1.1922007,632.19,631.96,1.18563171]
[1742979557333,1.1922007,632.18,631.96,1.18563171]
[1742979557528,1.1922007,632.17,631.96,1.18563171]
[1742979557729,0.92,632.21,631.96,1.18563171]
[1742979557935,1.19192055,632.2,631.96,1.18563171]
[1742979558234,1.19192055,632.19,631.96,1.18563171]
[1742979558430,1.19192055,632.18,631.94,1.18563171]
[1742979558643,0.92,632.21,631.94,1.18563171]
[1742979558942,1.19158872,632.2,631.94,1.18563171]
[1742979559136,1.19158872,632.19,631.94,1.18563171]
[1742979559340,1.19158872,632.18,631.94,1.18563171]
[1742979559538,0.92,632.21,631.94,1.18563171]
[1742979559735,1.19138919,632.2,631.94,1.18563171]
[1742979559936,1.19138919,632.19,631.94,1.18563171]
[1742979560144,1.19138919,632.18,631.94,1.18563171]
[1742979560343,0.92,632.21,631.94,1.18563171]
[1742979560542,1.19116524,632.2,631.94,1.18563171]
[1742979560843,1.19116524,632.19,631.94,1.18563171]
[1742979561143,1.19116524,632.18,631.94,1.18563171]
[1742979561345,0.92,632.21,631.94,1.18563171]
[1742979561643,0.426,632.28,631.94,1.18563171]
[1742979561843,1.19103081,632.27,631.94,1.18563171]
[1742979562036,0.426,632.28,631.94,1.18563171]
[1742979562236,1.19106191,632.27,631.94,1.18563171]
[1742979562438,0.426,632.28,631.94,1.18563171]
[1742979562636,1.19090272,632.27,631.94,1.18563171]
[1742979562841,0.426,632.28,631.94,1.18563171]
[1742979563042,1.19090148,632.27,631.94,1.18563171]
[1742979563342,0.426,632.28,631.94,1.18563171]
[1742979563544,1.1907768,632.27,631.94,1.18563171]
[1742979563840,0.426,632.28,631.87,1.18563171]
[1742979564043,1.19077154,632.27,631.87,1.18563171]
[1742979564238,0.426,632.28,631.87,1.18563171]
[1742979564544,1.190758,632.27,631.87,1.18563171]
[1742979564843,1.054,632.27,631.87,1.18563171]
[1742979565044,1.054,632.27,631.86,1.18563171]
[1742979568553,1.19022021,632.26,631.86,1.18563171]
[1742979568751,1.19022021,632.25,631.86,1.18563171]
[1742979569053,1.19022021,632.24,631.78,1.18563171]
[1742979569247,1.19022021,632.23,631.78,1.18563171]
[1742979569450,1.19022021,632.22,631.78,1.18563171]
[1742979569650,1.19022021,632.21,631.78,1.18563171]
[1742979569953,1.19022021,632.2,631.78,1.18563171]
[1742979570149,1.054,632.27,631.78,1.18563171]
[1742979570346,1.19023778,632.26,631.78,1.18563171]
[1742979570551,1.19023778,632.25,631.78,1.18563171]
[1742979570750,1.19023778,632.24,631.78,1.18563171]
[1742979570946,1.19023778,632.23,631.78,1.18563171]
[1742979571151,1.19023778,632.22,631.78,1.18563171]
[1742979571347,1.19023778,632.21,631.78,1.18563171]
[1742979571651,1.054,632.27,631.78,1.18563171]
[1742979571855,1.19011403,632.26,631.84,1.18563171]
[1742979572147,1.19011403,632.25,631.84,1.18563171]
[1742979572349,1.19011403,632.24,631.84,1.18563171]
[1742979572548,1.19011403,632.23,631.84,1.18563171]
[1742979572746,1.19011403,632.22,631.84,1.18563171]
[1742979572950,1.19011403,632.21,631.84,1.18563171]
[1742979573148,1.054,632.27,631.84,1.18563171]
[1742979573447,1.19004343,632.26,631.84,1.18563171]
[1742979573648,1.19004343,632.25,631.84,1.18563171]
[1742979573852,1.19004343,632.24,631.84,1.18563171]
[1742979574054,1.19004343,632.23,631.86,1.18563171]
[1742979574254,1.19004343,632.22,631.86,1.18563171]
[1742979574454,1.19004343,632.21,631.86,1.18563171]
[1742979574655,0.426,632.22,631.86,1.18563171]
[1742979574855,1.18995211,632.21,631.86,1.18563171]
[1742979575155,0.426,632.22,631.86,1.18563171]
[1742979576155,0.426,632.22,624.45,9.45140903]
[1742979576156,1.18988067,632.21,631.84,1.18563171]
[1742979576356,0.426,632.22,631.85,0.26439987]
[1742979576956,0.426,632.22,631.84,1.18563171]
[1742979578258,0.426,632.22,631.85,0.26439811]
[1742979578754,0.426,632.22,631.84,1.18563171]
[1742979578959,0.426,632.22,631.61,1.17977798]
[1742979578960,0.426,632.22,631.9,1.18563171]
[1742979581263,0.426,632.22,631.96,1.18563171]
[1742979583859,0.426,632.22,632.03,1.18563171]
[1742979583860,1.18995396,632.21,632.03,1.18563171]
[1742979584063,0.426,632.22,632.03,1.18563171]
[1742979584464,1.18999918,632.21,632.03,1.18563171]
[1742979584661,0.426,632.22,632.03,1.18563171]
[1742979584862,1.18997314,632.21,632.03,1.18563171]
[1742979585063,0.426,632.22,632.05,1.18563171]
[1742979585261,1.18999043,632.21,632.05,1.18563171]
[1742979585566,0.426,632.22,632.05,1.18563171]
[1742979585759,1.18999298,632.21,632.05,1.18563171]
[1742979585959,0.426,632.22,632.05,1.18563171]
[1742979586165,1.18998473,632.21,632.05,1.18563171]
[1742979586462,1.18998473,632.2,632.05,1.18563171]
[1742979586766,0.426,632.22,632.05,1.18563171]
[1742979586960,1.19004702,632.21,632.05,1.18563171]
[1742979587166,1.19004702,632.2,632.05,1.18563171]
[1742979587364,0.426,632.22,632.05,1.18563171]
[1742979587566,1.19015072,632.21,632.02,1.18563171]
[1742979587867,1.19015072,632.2,632.02,1.18563171]
[1742979588063,0.426,632.22,632.02,1.18563171]
[1742979588265,1.19012804,632.21,632.02,1.18563171]
[1742979588461,1.19012804,632.2,632.02,1.18563171]
[1742979588665,0.426,632.22,632.02,1.18563171]
[1742979588866,1.19016682,632.21,632.02,1.18563171]
[1742979589163,1.19016682,632.2,632.02,1.18563171]
[1742979589365,0.426,632.22,632.02,1.18563171]
[1742979589568,1.19024353,632.21,632.02,1.18563171]
[1742979589767,1.19024353,632.2,632.02,1.18563171]
[1742979589968,0.426,632.22,632.02,1.18563171]
[1742979590269,1.19024708,632.21,632.02,1.18563171]
[1742979590468,1.19024708,632.2,632.02,1.18563171]
[1742979590765,0.426,632.22,632.02,1.18563171]
[1742979590964,1.19035478,632.21,632.02,1.18563171]
[1742979591264,0.426,632.22,632.02,1.18563171]
[1742979591469,1.19062607,632.21,632.02,1.18563171]
[1742979591671,1.19062607,632.2,632.02,1.18563171]
[1742979591870,0.426,632.22,632.02,1.18563171]
[1742979592072,1.19067814,632.21,632.02,1.18563171]
[1742979592271,0.426,632.22,632.02,1.18563171]
[1742979592466,1.19068735,632.21,632.02,1.18563171]
[1742979592674,1.19068735,632.2,632.02,1.18563171]
[1742979592872,0.426,632.22,632.02,1.18563171]
[1742979593072,1.19079088,632.21,632.02,1.18563171]
[1742979593272,1.19079088,632.2,632.02,1.18563171]
[1742979593471,0.426,632.22,632.02,1.18563171]
[1742979593673,1.19089341,632.21,632.02,1.18563171]
[1742979593875,1.19089341,632.21,631.49,1.00818027]
[1742979593876,1.19089341,632.2,632.05,1.18563171]
[1742979594178,0.426,632.22,632.05,1.18563171]
[1742979594372,1.19088725,632.21,632.05,1.18563171]
[1742979594673,1.19088725,632.2,632.05,1.18563171]
[1742979594874,1.19088725,632.19,632.05,1.18563171]
[1742979595073,0.426,632.22,632.05,1.18563171]
[1742979595270,1.19099021,632.21,632.05,1.18563171]
[1742979595475,1.19099021,632.2,632.05,1.18563171]
[1742979595677,1.19099021,632.19,632.05,1.18563171]
[1742979595874,0.426,632.22,632.05,1.18563171]
[1742979596175,1.19118025,632.21,632.09,1.18563171]
[1742979596375,1.19129968,632.2,632.09,1.18563171]
[1742979596576,1.19129968,632.19,632.09,1.18563171]
[1742979596875,0.426,632.22,632.09,1.18563171]
[1742979597068,1.19130399,632.21,632.09,1.18563171]
[1742979597272,1.19130399,632.2,632.09,1.18563171]
[1742979597567,1.19130399,632.19,632.09,1.18563171]
[1742979597771,1.19130399,632.18,632.09,1.18563171]
[1742979597973,0.426,632.22,632.09,1.18563171]
[1742979598172,1.19142973,632.21,632.09,1.18563171]
[1742979598371,0.426,632.22,632.09,1.18563171]
[1742979598574,1.19163557,632.21,632.09,1.18563171]
[1742979598770,1.19163557,632.2,632.09,1.18563171]
[1742979598974,1.19163557,632.19,632.09,1.18563171]
[1742979599276,1.19163557,632.18,632.09,1.18563171]
[1742979599476,1.19163557,632.17,632.09,1.18563171]
[1742979599676,0.426,632.22,632.09,1.18563171]
[1742979599872,1.19185571,632.21,632.09,1.18563171]
[1742979600075,1.19185571,632.21,631.92,1.17977798]
[1742979600076,1.19185571,632.2,632.1,1.18563171]
[1742979600275,1.19185571,632.19,632.1,1.18563171]
[1742979600474,1.19185044,632.18,632.1,1.18563171]
[1742979600675,1.19185044,632.17,632.1,1.18563171]
[1742979600875,1.19185044,632.16,632.1,1.18563171]
[1742979601072,0.426,632.22,632.1,1.18563171]
[1742979601273,1.19208028,632.21,632.1,1.18563171]
[1742979601477,1.19208028,632.2,632.1,1.18563171]
[1742979601677,1.19208028,632.19,632.1,1.18563171]
[1742979601873,1.19208028,632.18,632.1,1.18563171]
[1742979602075,1.19232999,632.17,632.1,1.18563171]
[1742979602274,0.426,632.22,632.1,1.18563171]
[1742979602472,1.19260528,632.21,632.1,1.18563171]
[1742979602677,1.19260528,632.2,632.1,1.18563171]
[1742979602878,1.19260528,632.19,632.1,1.18563171]
[1742979603074,1.19260528,632.18,632.1,1.18563171]
[1742979603276,0.426,632.22,632.1,1.18563171]
[1742979603478,1.1926368,632.21,632.1,1.18563171]
[1742979603680,1.1926368,632.2,632.09,1.18563171]
[1742979603878,1.1929795,632.19,632.09,1.18563171]
[1742979604075,1.1929795,632.18,632.09,1.18563171]
[1742979604278,1.1929795,632.17,632.09,1.18563171]
[1742979604483,1.19340479,632.16,632.09,1.18563171]
[1742979604683,1.19340479,632.15,632.09,1.18563171]
[1742979604981,1.08827617,632.42,632.09,1.18563171]
[1742979605181,1.19340333,632.41,632.09,1.18563171]
[1742979605382,1.19340333,632.4,632.09,1.18563171]
[1742979605582,1.19340333,632.39,632.09,1.18563171]
[1742979605787,1.19340333,632.38,632.09,1.18563171]
[1742979605984,1.19340333,632.37,632.09,1.18563171]
[1742979606185,1.19340333,632.36,632.05,1.18563171]
[1742979606386,1.19340333,632.35,632.05,1.18563171]
[1742979606586,1.19340333,632.34,632.05,1.18563171]
[1742979606885,1.19340333,632.33,632.05,1.18563171]
[1742979607086,1.19340333,632.32,632.05,1.18563171]
[1742979607292,1.19340333,632.31,632.05,1.18563171]
[1742979607587,1.19340333,632.3,632.05,1.18563171]
[1742979607788,1.08825439,632.42,632.05,1.18563171]
[1742979607789,1.19340333,632.29,632.05,1.18563171]
[1742979607993,1.19340333,632.28,632.05,1.18563171]
[1742979608184,1.19340333,632.27,632.05,1.18563171]
[1742979608383,1.19340333,632.26,632.05,1.18563171]
[1742979608584,1.19340333,632.25,632.05,1.18563171]
[1742979608791,1.19340333,632.24,632.05,1.18563171]
[1742979609094,0.426,632.37,632.06,1.18563171]
[1742979609095,1.19340333,632.23,632.06,1.18563171]
[1742979609282,1.19340333,632.22,632.06,1.18563171]
[1742979609487,1.19340333,632.21,632.06,1.18563171]
[1742979609689,1.19340333,632.2,632.06,1.18563171]
[1742979609889,1.19340333,632.19,632.06,1.18563171]
[1742979610090,1.19340333,632.18,632.06,1.18563171]
[1742979610287,1.19340333,632.17,632.06,1.18563171]
[1742979610487,1.19340333,632.16,632.06,1.18563171]
[1742979610691,1.19340333,632.15,632.06,1.18563171]
[1742979610884,1.19340333,632.14,632.06,1.18563171]
[1742979611087,1.19340333,632.13,632.06,1.18563171]
[1742979611287,0.426,632.37,632.06,1.18563171]
[1742979611485,1.19419687,632.36,632.06,1.18563171]
[1742979611690,1.19419687,632.35,632.06,1.18563171]
[1742979611890,1.19419687,632.34,632.06,1.18563171]
[1742979612393,1.19419687,632.33,632.06,1.18563171]
[1742979612593,1.19419687,632.32,632.06,1.18563171]
[1742979612786,1.19419687,632.31,632.06,1.18563171]
[1742979612990,1.19419687,632.3,632.06,1.18563171]
[1742979613194,1.19419687,632.29,632.06,1.18563171]
[1742979613395,1.19419687,632.28,632.06,1.18563171]
[1742979613588,1.19419687,632.27,632.06,1.18563171]
[1742979613788,1.19419687,632.26,632.04,1.18563171]
[1742979614091,1.19419687,632.25,632.04,1.18563171]
[1742979614293,1.19419687,632.24,632.04,1.18563171]
[1742979614489,1.19419687,632.23,632.04,1.18563171]
[1742979614689,1.19419687,632.22,632.04,1.18563171]
[1742979614894,1.19419687,632.21,632.04,1.18563171]
[1742979615094,1.19419687,632.2,632.04,1.18563171]
[1742979615291,1.19419687,632.19,632.04,1.18563171]
[1742979615491,1.19419687,632.18,632.04,1.18563171]
[1742979615694,1.19419687,632.17,632.04,1.18563171]
[1742979615996,1.19419687,632.16,631.88,1.18563171]
[1742979616198,1.19419687,632.15,631.88,1.18563171]
[1742979616398,1.19419687,632.14,631.88,1.18563171]
[1742979616599,1.19419687,632.13,631.88,1.18563171]
[1742979616800,1.19419687,632.12,631.88,1.18563171]
[1742979617000,1.19419687,632.11,631.88,1.18563171]
[1742979617203,0.426,632.37,631.88,1.18563171]
[1742979617401,1.19506156,632.36,631.88,1.18563171]
[1742979617600,1.19506156,632.35,631.88,1.18563171]
[1742979617801,1.19506156,632.34,631.88,1.18563171]
[1742979617996,1.19506156,632.33,631.88,1.18563171]
[1742979618301,1.19506156,632.32,631.85,1.18563171]
[1742979618499,1.19506156,632.31,631.85,1.18563171]
[1742979618696,1.19506156,632.3,631.85,1.18563171]
[1742979618900,1.19506156,632.29,631.85,1.18563171]
[1742979619102,1.19506156,632.28,631.85,1.18563171]
[1742979619303,1.19506156,632.27,631.85,1.18563171]
[1742979619603,1.19506156,632.26,631.85,1.18563171]
[1742979619799,1.19506156,632.25,631.85,1.18563171]
[1742979620001,1.19506156,632.24,631.85,1.18563171]
[1742979620199,1.19506156,632.23,631.85,1.18563171]
[1742979620401,1.19506156,632.22,631.84,1.18563171]
[1742979620702,1.19512278,632.21,631.84,1.18563171]
[1742979620902,1.19512278,632.2,631.84,1.18563171]
[1742979621197,1.19512278,632.19,631.84,1.18563171]
[1742979621402,1.19512278,632.18,631.84,1.18563171]
[1742979621603,1.19512278,632.17,631.84,1.18563171]
[1742979621803,1.19512278,632.16,631.84,1.18563171]
[1742979622098,1.19512278,632.15,631.84,1.18563171]
[1742979622304,1.19512278,632.14,631.84,1.18563171]
[1742979622503,1.19512278,632.13,631.84,1.18563171]
[1742979622702,1.19512278,632.12,631.84,1.18563171]
[1742979622899,1.19512278,632.11,631.97,1.18563171]
[1742979623103,1.03,632.24,631.97,1.18563171]
[1742979623403,1.19513301,632.23,631.97,1.18563171]
[1742979623599,1.19513301,632.22,631.97,1.18563171]
[1742979623805,1.19513301,632.21,631.97,1.18563171]
[1742979624004,1.19513301,632.2,631.97,1.18563171]
[1742979624198,1.19513301,632.19,631.97,1.18563171]
[1742979624403,1.03,632.24,632.03,1.18563171]
[1742979624404,1.19513301,632.18,632.03,1.18563171]
[1742979624703,1.19513301,632.17,632.03,1.18563171]
[1742979624903,1.19513301,632.16,632.03,1.18563171]
[1742979625106,1.19513301,632.15,632.03,1.18563171]
[1742979625307,1.19513301,632.14,632.03,1.18563171]
[1742979625505,1.19513301,632.13,632.03,1.18563171]
[1742979625709,1.19513301,632.12,632.03,1.18563171]
[1742979625909,1.19513301,632.11,632.03,1.18563171]
[1742979626110,0.27528379,632.42,632.03,1.18563171]
[1742979626306,1.19518338,632.41,632.03,1.18563171]
[1742979626512,1.19518338,632.4,632.03,1.18563171]
[1742979626705,1.19518338,632.39,632.03,1.18563171]
[1742979626907,1.19518338,632.38,632.03,1.18563171]
[1742979627107,1.19518338,632.37,632.03,1.18563171]
[1742979627310,1.19518338,632.36,632.03,1.18563171]
[1742979627504,1.19518338,632.35,632.03,1.18563171]
[1742979627706,1.19518338,632.34,632.03,1.18563171]
[1742979627907,1.19518338,632.33,632.03,1.18563171]
[1742979628108,1.19518338,632.32,632.03,1.18563171]
[1742979628408,1.19518338,632.31,632.05,1.18563171]
[1742979628608,1.19518338,632.3,632.05,1.18563171]
[1742979628810,1.19518338,632.29,632.05,1.18563171]
[1742979629112,1.19518338,632.28,632.05,1.18563171]
[1742979629311,1.19518338,632.27,632.05,1.18563171]
[1742979629515,1.19518338,632.26,632.05,1.18563171]
[1742979629714,1.19518338,632.25,632.05,1.18563171]
[1742979629912,1.19518338,632.24,632.05,1.18563171]
[1742979630210,1.19518338,632.23,632.05,1.18563171]
[1742979630515,1.19518338,632.22,632.05,1.18563171]
[1742979630714,1.19518338,632.21,632.05,1.18563171]
[1742979630910,1.19518338,632.2,631.73,1.18563171]
[1742979631111,1.19485322,632.19,631.73,1.18563171]
[1742979631308,1.19485322,632.18,631.73,1.18563171]
[1742979631512,1.19485322,632.17,631.73,1.18563171]
[1742979631712,1.19485322,632.16,631.73,1.18563171]
[1742979631912,1.19485322,632.15,631.73,1.18563171]
[1742979632109,1.19485322,632.14,631.73,1.18563171]
[1742979632311,1.19485322,632.13,631.73,1.18563171]
[1742979632515,1.19485322,632.12,631.73,1.18563171]
[1742979632811,1.19485322,632.11,631.72,1.18563171]
[1742979633008,0.27528597,632.38,631.72,1.18563171]
[1742979633009,1.19485322,632.1,631.72,1.18563171]
[1742979633212,1.19485322,632.09,631.72,1.18563171]
[1742979633412,1.19485322,632.08,631.72,1.18563171]
[1742979633614,1.19485322,632.07,631.72,1.18563171]
[1742979633809,0.27528597,632.38,631.72,1.18563171]
[1742979634013,1.19451072,632.37,631.72,1.18563171]
[1742979634212,1.19451072,632.36,631.72,1.18563171]
[1742979634414,1.19451072,632.35,631.73,0.26442602]
[1742979634614,1.19451072,632.34,631.74,0.26442602]
[1742979634810,1.19451072,632.33,631.68,0.26442602]
[1742979635015,1.19451072,632.32,631.69,0.26442602]
[1742979635215,1.19451072,632.31,631.68,0.26442602]
[1742979635415,1.19451072,632.3,631.69,0.26442602]
[1742979635614,1.19451072,632.29,631.7,0.2644266]
[1742979635816,1.19451072,632.29,631.67,1.18563171]
[1742979635817,1.19451072,632.28,631.71,0.2644266]
[1742979636010,1.19451072,632.27,631.68,0.2644266]
[1742979636214,1.19451072,632.26,631.69,0.2644266]
[1742979636411,1.19451072,632.26,631.67,1.18563171]
[1742979636412,1.19451072,632.25,631.7,0.2644266]
[1742979636613,1.19451072,632.24,631.68,0.2644266]
[1742979636919,1.19451072,632.23,631.97,1.18563171]
[1742979637216,1.19427492,632.22,631.97,1.18563171]
[1742979637411,1.19427492,632.21,631.97,1.18563171]
[1742979637611,1.19427492,632.2,631.97,1.18563171]
[1742979637809,1.19427492,632.19,631.97,1.18563171]
[1742979638012,1.19427492,632.18,631.97,1.18563171]
[1742979638214,1.19427492,632.17,631.97,1.18563171]
[1742979638418,1.19427492,632.16,631.97,1.18563171]
[1742979638615,1.19427492,632.15,631.97,1.18563171]
[1742979638815,1.19427492,632.14,631.97,1.18563171]
[1742979639014,1.128,632.83,632.0,1.18563171]
[1742979639015,1.19427492,632.13,632.0,1.18563171]
[1742979639216,1.19427492,632.12,632.0,1.18563171]
[1742979639416,1.19427492,632.11,632.0,1.18563171]
[1742979639613,1.128,632.83,632.0,1.18563171]
[1742979639614,1.19427492,632.1,632.0,1.18563171]
[1742979639818,1.19427492,632.09,632.0,1.18563171]
[1742979640120,1.19427492,632.08,632.0,1.18563171]
[1742979640419,1.19427492,632.07,632.0,1.18563171]
[1742979640620,0.27530448,632.38,632.0,1.18563171]
[1742979640822,1.19413098,632.37,632.0,1.18563171]
[1742979641022,1.19413098,632.36,631.92,1.18563171]
[1742979641217,0.27530448,632.38,631.92,1.18563171]
[1742979641218,1.19413098,632.35,631.92,1.18563171]
[1742979641414,1.19413098,632.34,631.92,1.18563171]
[1742979641619,1.19413098,632.33,631.92,1.18563171]
[1742979641820,1.19413098,632.32,631.92,1.18563171]
[1742979642020,1.19413098,632.31,631.92,1.18563171]
[1742979642221,1.19413098,632.3,631.92,1.18563171]
[1742979642417,1.19413098,632.29,631.92,1.18563171]
[1742979642631,1.19413098,632.28,631.92,1.18563171]
[1742979642821,1.19413098,632.27,631.92,1.18563171]
[1742979643021,1.19413098,632.26,631.92,1.18563171]
[1742979643219,1.19413098,632.25,631.92,1.18563171]
[1742979643422,1.19413098,632.24,631.92,1.18563171]
[1742979643717,1.19413098,632.23,631.92,1.18563171]
[1742979643922,1.19413098,632.22,631.92,1.18563171]
[1742979644122,1.19413098,632.21,631.92,1.18563171]
[1742979644321,1.19413098,632.2,631.92,1.18563171]
[1742979644523,0.2752925,632.38,631.92,1.18563171]
[1742979644524,1.19413098,632.19,631.92,1.18563171]
[1742979644719,1.19413098,632.18,631.92,1.18563171]
[1742979644915,1.19413098,632.17,631.92,1.18563171]
[1742979645121,1.19413098,632.16,631.92,1.18563171]
[1742979645422,1.19413098,632.15,631.92,1.18563171]
[1742979645621,1.19413098,632.14,631.92,1.18563171]
[1742979645822,1.19413098,632.13,631.92,1.18563171]
[1742979646017,0.27529685,632.42,631.92,1.18563171]
[1742979646214,1.19412848,632.41,631.92,1.18563171]
[1742979646422,1.19412848,632.4,631.92,1.18563171]
[1742979646621,1.19412848,632.39,631.92,1.18563171]
[1742979646922,1.19412848,632.38,631.92,1.18563171]
[1742979647119,1.19412848,632.37,631.92,1.18563171]
[1742979647319,1.19412848,632.36,631.92,1.18563171]
[1742979647622,1.19412848,632.35,631.92,1.18563171]
[1742979647922,1.19412848,632.35,631.4,1.41573358]
[1742979648122,1.19412848,632.33,631.46,0.27527725]
[1742979648322,1.19412848,632.32,631.47,0.26440449]
[1742979648520,1.19412848,632.31,631.47,0.26440449]
[1742979648718,1.19412848,632.3,631.33,0.26440449]
[1742979648917,1.19412848,632.29,631.34,0.26440449]
[1742979649117,1.19412848,632.28,631.33,0.26440449]
[1742979649421,1.19412848,632.27,631.34,0.27534804]
[1742979649620,2.10212848,632.26,631.35,0.26440449]
[1742979649822,1.19412848,632.25,631.35,0.26440449]
[1742979650016,1.19412848,632.24,631.35,0.26440449]
[1742979650220,1.19412848,632.23,631.35,0.26440449]
[1742979650421,1.19412848,632.22,631.35,0.26440449]
[1742979650618,1.19412848,632.21,631.35,0.26440449]
[1742979650821,1.19412848,632.2,631.35,0.26440449]
[1742979651120,1.19405625,632.19,631.35,0.26440449]
[1742979651320,0.908,632.26,631.35,0.26440449]
[1742979651321,1.19405625,632.18,631.35,0.26440449]
[1742979651521,1.19405625,632.17,631.35,0.26440449]
[1742979651717,0.908,632.26,631.35,0.26440449]
[1742979651921,1.19404084,632.25,631.35,0.26440449]
[1742979652124,1.19404084,632.24,631.35,0.26440449]
[1742979652322,1.19404084,632.23,631.35,0.26440449]
[1742979652522,1.19404084,632.22,631.35,0.26440449]
[1742979652824,1.19404084,632.21,631.35,0.26440449]
[1742979653118,1.19404084,632.2,631.35,0.26440449]
[1742979653322,1.19404084,632.19,631.35,0.26440449]
[1742979653523,0.908,632.26,631.35,0.26440449]
[1742979653823,1.19401122,632.25,631.35,0.26440449]
[1742979654022,1.19401122,632.24,631.33,0.26440449]
[1742979654221,1.19401122,632.23,631.34,0.53975689]
[1742979654418,1.19401122,632.22,631.35,0.26440449]
[1742979654618,0.908,632.26,631.35,0.26440449]
[1742979654619,1.19401122,632.21,631.35,0.26440449]
[1742979654822,1.19401122,632.2,631.35,0.26440449]
[1742979655023,1.19401122,632.19,631.35,0.26440449]
[1742979655225,0.821,632.2,631.35,0.26440449]
[1742979655425,1.19391671,632.19,631.35,0.26440449]
[1742979655720,0.821,632.2,631.35,0.26440449]
[1742979655925,1.19390476,632.19,631.35,0.26440449]
[1742979656125,0.821,632.2,631.35,0.26440449]
[1742979656320,1.19390813,632.19,631.35,0.26440449]
[1742979656519,0.821,632.2,631.35,0.26440449]
[1742979656722,1.19388873,632.19,631.35,0.26440449]
[1742979656919,0.821,632.2,631.33,0.26440449]
[1742979657118,1.19387545,632.19,631.34,0.26440449]
[1742979657318,0.821,632.2,631.33,0.26440449]
[1742979657520,0.821,632.2,629.62,3.07626802]
[1742979657521,1.19386307,632.19,631.35,0.26440449]
[1742979657724,0.821,632.2,631.36,0.26440449]
[1742979658026,1.19386522,632.19,631.37,0.26440449]
[1742979658227,0.821,632.2,631.35,0.27535894]
[1742979658427,1.19385698,632.19,631.36,0.26440449]
[1742979658726,0.821,632.2,631.36,0.26440449]
[1742979658926,1.19384618,632.19,631.36,0.26440449]
[1742979659126,0.821,632.2,631.36,0.26440449]
[1742979659323,1.19388977,632.19,631.36,0.26440449]
[1742979659520,0.821,632.2,631.36,0.26440449]
[1742979659724,1.19383043,632.19,631.36,0.26440449]
[1742979659927,0.821,632.2,631.36,0.26440449]